Cogmind - Beta 15 @@@ ROGUE MODE // 2025.07.10 @ 13:29:06 Player: beans Result: Destroyed by G-50 Soldier with Heavy Laser Performance ------------- Evolutions (3) 1500 Regions Visited (9) 1800 Robots Destroyed (124) 620 Value Destroyed (3330) 3330 Prototype IDs (28) 560 Alien Tech Used (0) 0 Bonus (678) 678 TOTAL SCORE: 8488 Bonus ------- High Alert Combat Kills 157 Follower Combat Kills 548 Aligned with FarCom 300 Friendly Fire -327 Cogmind --------- Core Integrity 0/700 Matter 5/300 Energy 68/100 System Corruption 18% Temperature Danger (422) Movement Core (50) Location -7/Factory Parts ------- > --- POWER (1) -------- (None) > --- PROPULSION (6) --- (None) > --- UTILITY (2) ------ (None) > --- WEAPON (4) ------- Blade Saw > --- INVENTORY (5) ---- Hardcell Cannon Mace Peak State ------------ > --- POWER ------------ Deuterium Engine > --- PROPULSION ------- Flying Fortress v7 > --- UTILITY ---------- Visual Processing Unit Core Analyzer > --- WEAPON ----------- Cooled Pulse Rifle Cooled Pulse Rifle Minigun Precision Grenade Launcher > --- INVENTORY -------- (None) [Rating: 59] Favorites ----------- Power Light Angular Momentum Engine Engine Light Angular Momentum Engine Power Core Micro Nuclear Core Propulsion Carbon-fiber Leg Leg Carbon-fiber Leg Flight Unit Flying Fortress v7 Utility Visual Processing Unit Processor Visual Processing Unit Hackware Hacking Suite Weapon Cooled Pulse Rifle Energy Gun Cooled Pulse Rifle Energy Cannon Plasma Cannon Ballistic Gun Shotgun Ballistic Cannon Mini Assault Cannon Launcher Rocket Launcher Slashing Weapon Blade Saw Build | -11 -10 -9 -9 -9 -8 -8 -7 -7 -7 ------- Run | Yrd Mat Mat Min Exi Min Mat Fac Was Fac Slots Evolved 6 | . . 2 . . . 2 2 . . Power . | . . . . . . . . . . Propulsion 4 | . . . . . . 2 2 . . Utility . | . . . . . . . . . . Weapon 2 | . . 2 . . . . . . . Parts Attached 60 | 5 6 7 3 . 1 14 12 5 7 Power 5 | 1 . . . . . 2 1 1 . Engine 3 | 1 . . . . . 1 . 1 . Core 2 | . . . . . . 1 1 . . Reactor . | . . . . . . . . . . Propulsion 17 | 2 2 2 . . . 1 6 2 2 Treads . | . . . . . . . . . . Leg 12 | 2 2 . . . . . 4 2 2 Wheel . | . . . . . . . . . . Hover . | . . . . . . . . . . Flight 5 | . . 2 . . . 1 2 . . Utility 4 | . 1 1 1 . . . . . 1 Device . | . . . . . . . . . . Storage . | . . . . . . . . . . Processor 3 | . 1 1 1 . . . . . . Hackware 1 | . . . . . . . . . 1 Protection . | . . . . . . . . . . Artifact . | . . . . . . . . . . Weapon 34 | 2 3 4 2 . 1 11 5 2 4 Energy Gun 5 | 2 . . . . . 2 . 1 . Energy Cannon 2 | . . . . . . . 1 . 1 Ballistic Gun 13 | . 3 2 . . . 5 3 . . Ballistic Cannon 6 | . . 2 . . . 1 1 1 1 Launcher 7 | . . . 2 . 1 2 . . 2 Special Weapon . | . . . . . . . . . . Impact Weapon . | . . . . . . . . . . Slashing Weapon 1 | . . . . . . 1 . . . Piercing Weapon . | . . . . . . . . . . Special Melee Weapon . | . . . . . . . . . . Unidentified Prototypes 5 | . . 2 . . . 2 1 . . Parts Lost 45 | . 4 3 2 . 4 8 5 4 15 Power 4 | . 1 . . . . 2 . . 1 Propulsion 13 | . 2 1 . . 1 1 1 3 4 Utility 2 | . . . . . . . . . 2 Weapon 26 | . 1 2 2 . 3 5 4 1 8 Highest Loss Streak 13 | . 3 1 2 . 4 4 3 2 13 To Critical Strikes 2 | . . . . . . . . . 2 Average Backups 3 | . 3 4 5 3 1 2 4 4 4 Power . | . . . . . . . . . . Propulsion . | . . 2 3 1 1 . . . . Utility . | . . . 1 1 . . . . . Weapon 3 | . 3 1 1 . . 2 4 4 4 Tool/Special . | . . . . . . . . . . Unused Backups 4 | . . . . 3 1 . . . . Power . | . . . . . . . . . . Propulsion 3 | . . . . 3 . . . . . Utility 1 | . . . . . 1 . . . . Weapon . | . . . . . . . . . . Tool/Special . | . . . . . . . . . . Average Slot Usage (%) 60 | . 66 67 84 63 52 65 54 49 63 Engine 3 | . 10 . . . . 5 . 2 6 Core 1 | . . . . . . . 2 3 . Leg 8 | . 24 11 . . . . 3 10 11 Flight 3 | . . 1 22 19 19 8 4 . . Processor 15 | . 2 20 22 22 22 18 15 15 13 Energy Gun 6 | . 2 . . . . 14 . 9 12 Ballistic Gun 12 | . 25 24 9 . . 13 18 3 4 Ballistic Cannon 5 | . . 10 20 11 4 . 6 4 6 Launcher 2 | . . . 10 11 6 3 . . 4 Peak Build Rating 59 | 5 8 17 16 18 18 59 38 35 35 Average Rating 26 | 3 6 10 15 16 15 53 24 24 31 On Entrance 15 | . 5 8 14 15 18 12 11 35 35 Naked Turns 2 | . . . . . . . . . 2 Heaviest Build 31 | 9 11 12 13 7 7 26 20 26 31 Greatest Support 60 | 20 20 20 10 10 10 50 60 60 45 Greatest Overweight (x) 8 | . 1 1 1 2 1 4 5 8 2 Average Overweight (x) . | . . . . . . . 1 . . Largest Inventory Capacity 5 | 5 5 5 5 5 5 5 5 5 5 Average Capacity 5 | 5 5 5 5 5 5 5 5 5 5 Most Carried 5 | 2 5 5 5 5 5 5 5 5 5 Average Carried 3 | . 3 4 5 4 4 2 4 4 4 Final Capacity 5 | 5 5 5 5 5 5 5 5 5 5 Final Carried 5 | . 4 5 5 5 4 3 5 4 2 Class Distribution -------------------- 50% | Skirmisher 21% | Mutant 11% | Gunner 9% | Scavenger-Skirmisher 6% | Scavenger-Mutant Dominant Class ---------------- Mutant | -10/Materials Gunner | -9/Materials Gunner | -9/Mines Mutant | -9/Exiles Mutant | -8/Mines Skirmisher | -8/Materials Skirmisher | -7/Factory Skirmisher | -7/Waste Skirmisher | -7/Factory Resources | -11 -10 -9 -9 -9 -8 -8 -7 -7 -7 ----------- Run | Yrd Mat Mat Min Exi Min Mat Fac Was Fac Matter Collected 2985 | 75 432 937 54 . . 646 293 361 187 Remotely . | . . . . . . . . . . Salvage Created 3805 | . 432 877 94 . . 1039 293 539 531 Parts 255 | . 34 65 5 . . 88 23 1 39 Haulers Intercepted 2 | . 1 1 . . . . . . . Recyclers Shooed 2 | . . 1 . . . 1 . . . Parts Field Recycled . | . . . . . . . . . . Retrieved Matter . | . . . . . . . . . . Parts Self-Destructed . | . . . . . . . . . . Prevented . | . . . . . . . . . . Kills | -11 -10 -9 -9 -9 -8 -8 -7 -7 -7 ------- Run | Yrd Mat Mat Min Exi Min Mat Fac Was Fac Combat Hostiles Destroyed 80 | . 9 20 . . . 32 8 2 9 Melee 1 | . . . . . . 1 . . . Guns 49 | . 9 11 . . . 20 4 1 4 Cannons 17 | . . 9 . . . . 4 . 4 AOE 11 | . . . . . . 10 . . 1 Classes Destroyed 18 | . 5 6 . . . 3 1 1 2 Worker 14 | . 2 4 1 . . 2 . . 5 Builder 12 | . 1 1 1 . . 6 . . 3 Tunneler 1 | . . 1 . . . . . . . Hauler 2 | . 1 1 . . . . . . . Recycler 4 | . . 2 1 . . 1 . . . Mechanic 2 | . . . . . . . . . 2 Operator 1 | . . 1 . . . . . . . Watcher 7 | . 2 4 . . . . . . 1 Swarmer 23 | . . 8 . . . 10 4 . 1 Cutter 3 | . . . . . . 3 . . . Grunt 32 | . 9 7 . . . 12 . . 4 Brawler 1 | . . . . . . . . . 1 Duelist 2 | . . 1 . . . . . . 1 Sentry 8 | . . 4 . . . 4 . . . Hunter 5 | . . . . . . 2 3 . . Programmer 3 | . . . . . . . 1 . 2 Heavy 1 | . . . . . . 1 . . . Compactor 2 | . . . . . . . . 2 . Thug 1 | . . . . . . . . . 1 Best Kill Streak 12 | . 4 12 3 . . 8 4 1 7 Combat Bots Only 7 | . 3 5 . . . 7 4 1 3 Max Kills in Single Turn 3 | . 2 3 2 . . 2 1 1 3 Gunslinging . | . . . . . . . . . . Exploded 2 | . . . . . . 2 . . 1 Melee 1 | . . . . . . 1 . . . Uniques/NPCs Destroyed . | . . . . . . . . . . Combat | -11 -10 -9 -9 -9 -8 -8 -7 -7 -7 -------- Run | Yrd Mat Mat Min Exi Min Mat Fac Was Fac Hostile Shots Fired 534 | . 64 80 . . 36 162 84 4 104 Missed 152 | . 15 23 . . 19 48 20 . 27 Hits 382 | . 49 57 . . 17 114 64 4 77 Melee 19 | . . 3 . . . 2 . 4 10 Projectile 363 | . 49 54 . . 17 112 64 . 67 Critical Strikes 19 | . . . . . 2 5 2 2 8 Damage Taken 6446 | . 667 670 86 . 274 1901 874 318 1656 Core 1263 | . 122 117 66 . 74 182 183 167 352 Absorbed by Shields . | . . . . . . . . . . Core Remaining (%) 63 | 100 51 . . . 35 66 . . . Volleys Fired 256 | . 46 63 2 . 5 68 25 12 35 Largest 4 | . 2 4 4 . 2 4 3 3 4 Hottest 200 | . 46 99 113 . 63 170 126 160 200 Shots Fired 597 | . 91 180 7 . 7 142 43 28 99 Gun 398 | . 91 91 2 . . 117 29 18 50 Cannon 156 | . . 89 4 . 2 3 14 10 34 Launcher 43 | . . . 1 . 5 22 . . 15 Special . | . . . . . . . . . . Kinetic 467 | . 91 180 6 . 2 86 29 22 51 Thermal 87 | . . . . . . 34 14 6 33 Explosive 43 | . . . 1 . 5 22 . . 15 Electromagnetic . | . . . . . . . . . . Robot Hit Streak 15 | . 6 11 2 . 3 15 11 14 8 Robot Miss Streak 11 | . 7 8 2 . 2 11 3 1 5 Penetration Max 1 | . . . . . . . . . 1 Secondary Targets 8 | . . 1 . . . 5 1 1 . Max Gunslinging Chain 1 | . . 1 . . . 1 1 1 . Shots Hit Robots 351 | . 65 90 4 . 3 92 27 22 48 Core Hits 245 | . 30 51 4 . 7 76 15 6 56 Critical Kills 7 | . . . . . . 2 . 1 4 Critical Parts Destroyed 2 | . 1 1 . . . . . . . Critical Strikes 17 | . 1 2 . . . 8 . 1 5 Burn 3 | . . . . . . 3 . . . Destroy 9 | . 1 1 . . . 2 . 1 4 Blast 1 | . . 1 . . . . . . . Sever 4 | . . . . . . 3 . . 1 Melee Attacks 14 | . . . . . . 12 . . 2 Impact . | . . . . . . . . . . Slashing 14 | . . . . . . 12 . . 2 Piercing . | . . . . . . . . . . Sneak Attacks 3 | . . . . . . 3 . . . Combat Hostiles . | . . . . . . . . . . Follow-up Attacks . | . . . . . . . . . . Damage Inflicted 10221 | . 980 1705 194 . 331 3266 441 542 2762 Guns 4786 | . 980 839 10 . . 1724 261 301 671 Cannons 2079 | . . 866 38 . 19 13 180 241 722 Explosions 3186 | . . . 146 . 312 1368 . . 1360 Melee 170 | . . . . . . 161 . . 9 Ramming . | . . . . . . . . . . Kinetic 5330 | . 980 1705 48 . 19 1153 261 403 761 Thermal 1688 | . . . . . . 584 180 139 785 Explosive 3033 | . . . 146 . 312 1368 . . 1207 Electromagnetic . | . . . . . . . . . . Impact . | . . . . . . . . . . Slashing 170 | . . . . . . 161 . . 9 Piercing . | . . . . . . . . . . Highest Corruption 18 | . . . 1 1 1 . . . 18 Average Corruption 2 | . . . 1 1 1 . . . 2 Corruption Purged . | . . . . . . . . . . Corruption Blocked . | . . . . . . . . . . Effects 17 | . . . . 2 2 . . . 13 Message Errors 3 | . . . . . . . . . 3 Matter Fused 3 | . . . . 1 . . . . 2 Heat Flow Errors 3 | . . . . . . . . . 3 Energy Discharges 1 | . . . . 1 . . . . . Parts Rejected 1 | . . . . . . . . . 1 Parts Fused 1 | . . . . . . . . . 1 Data Loss (minor) 3 | . . . . . 2 . . . 1 Alerts 1 | . . . . . . . . . 1 Weapon Failures 1 | . . . . . . . . . 1 Overload Shots 34 | . . . . . . 21 . 2 11 Effects 2 | . . . . . . . . . 2 Short Circuit 2 | . . . . . . . . . 2 Overflow Damage 212 | . . 4 . . 4 35 . . 169 Projectiles 23 | . . 4 . . . . . . 19 Explosions 182 | . . . . . 4 28 . . 150 Melee 7 | . . . . . . 7 . . . Knockbacks 13 | . . 8 1 . . . . . 4 Impact . | . . . . . . . . . . Kinetic 13 | . . 8 1 . . . . . 4 Secondary . | . . . . . . . . . . Self-Inflicted Damage 401 | . . . . . 53 175 . . 173 Shots 14 | . . . . . 2 6 . . 6 Rammed . | . . . . . . . . . . Targets Rammed . | . . . . . . . . . . Kicked . | . . . . . . . . . . Crushed . | . . . . . . . . . . Highest Temperature 577 | . 16 15 33 . 17 492 80 78 577 Average Temperature 88 | . 4 4 14 . 11 127 25 14 119 Received Heat Transfer 1980 | . 375 219 . . 108 630 . . 648 Effects 7 | . . . . . . 2 . . 5 Shutdowns 1 | . . . . . . 1 . . . Energy Bleed 2 | . . . . . . 1 . . 1 Interference 3 | . . . . . . . . . 3 Damage (minor) 1 | . . . . . . . . . 1 Siege Activations . | . . . . . . . . . . Martial Activations . | . . . . . . . . . . Shielding Activations . | . . . . . . . . . . Robots Disrupted . | . . . . . . . . . . Combat Hostiles . | . . . . . . . . . . Robots Corrupted . | . . . . . . . . . . Combat Hostiles . | . . . . . . . . . . Parts Fried . | . . . . . . . . . . Impact Corruptions . | . . . . . . . . . . Robots Melted 2 | . . . . . . 1 . 1 . Combat Hostiles 2 | . . . . . . 1 . 1 . Parts Melted 8 | . . . . . . 5 . . 3 Heat Transferred 2657 | . . . . . . 1135 350 248 924 Parts Sabotaged . | . . . . . . . . . . Parts Stolen . | . . . . . . . . . . Parts Stripped . | . . . . . . . . . . Power Chain Reactions . | . . . . . . . . . . Alert | -11 -10 -9 -9 -9 -8 -8 -7 -7 -7 ------- Run | Yrd Mat Mat Min Exi Min Mat Fac Was Fac Maximum Alert Level 3 | . . 1 . . . 3 1 . 2 Low Security (%) 74 | 100 100 80 100 . 100 74 60 100 37 Level 1 16 | . . 19 . . . 7 39 . 31 Level 2 8 | . . . . . . 17 . . 31 Level 3 . | . . . . . . . . . . Level 4 . | . . . . . . . . . . Level 5 . | . . . . . . . . . . High Security . | . . . . . . . . . . Max Security . | . . . . . . . . . . Peak Influence 702 | . 104 320 141 . 107 702 307 28 676 Initial 307 | . . 18 120 . . 37 307 17 . Average 132 | . 59 98 110 . 19 179 165 . 281 Influence Increases 3469 | . 296 603 26 . 142 1078 215 36 1073 Destroy 0b10 Robot/C 1820 | . 180 400 . . . 640 160 . 440 Destroy 0b10 Robot/NC 225 | . 30 70 15 . . 45 . . 65 Destroy Leader 428 | . 56 110 . . . 150 40 . 72 Allied During Kill 161 | . . . . . . . . . 161 Successful Hack 32 | . . 22 . . . . . . 10 Disable Machine 165 | . . . . . . 75 . . 90 Anti-Garrison Action 150 | . . . . . . . . . 150 Destroy Structure 308 | . . 1 11 . 37 138 . 36 85 Partial Spotted 15 | . . . . . . 15 . . . Lose Combat Pursuer 165 | . 30 . . . 105 15 15 . . Influence Decreases 2908 | . 250 340 269 66 45 499 841 86 512 Entered New Map 745 | . . 28 189 66 . 60 369 33 . Time Decay 1655 | . 210 292 60 . 17 359 422 33 262 Lost Part 388 | . 40 20 20 . 28 80 50 . 150 Lost Ally 120 | . . . . . . . . 20 100 Squads Dispatched 23 | . 2 2 . . . 10 2 . 7 Investigation 5 | . 1 1 . . . 1 1 . 1 Extermination 2 | . . . . . . . 1 . 1 Reinforcement 12 | . 1 1 . . . 7 . . 3 Assault 2 | . . . . . . . . . 2 Garrison 2 | . . . . . . 2 . . . Intercept . | . . . . . . . . . . Searches Triggered . | . . . . . . . . . . Construction Impeded 4 | . . . . . . 2 . . 2 Haulers Reinforced 1 | . . . . . . . . . 1 Active Scanning Responses . | . . . . . . . . . . Cargo Convoy Interrupts . | . . . . . . . . . . Stealth | -11 -10 -9 -9 -9 -8 -8 -7 -7 -7 --------- Run | Yrd Mat Mat Min Exi Min Mat Fac Was Fac Distress Signals 10 | . 2 4 . . . 4 . . . Communications Jammed . | . . . . . . . . . . Distress Signals . | . . . . . . . . . . Times Spotted 152 | . 16 29 . . 14 45 9 11 28 Peak Tracking Total 10 | . 3 6 . . 10 7 4 5 8 Tactical Retreats 7 | . 2 . . . 1 1 1 2 . Traps | -11 -10 -9 -9 -9 -8 -8 -7 -7 -7 ------- Run | Yrd Mat Mat Min Exi Min Mat Fac Was Fac Traps Triggered 8 | . 1 1 2 . . . 2 . 2 Indirectly . | . . . . . . . . . . Trap Hack Attempts . | . . . . . . . . . . Triggered . | . . . . . . . . . . Disarmed . | . . . . . . . . . . Reprogrammed . | . . . . . . . . . . Reused . | . . . . . . . . . . Traps Extracted . | . . . . . . . . . . Installed . | . . . . . . . . . . Triggered . | . . . . . . . . . . Machines | -11 -10 -9 -9 -9 -8 -8 -7 -7 -7 ---------- Run | Yrd Mat Mat Min Exi Min Mat Fac Was Fac Machines Disabled 13 | . . 1 . . . 5 . . 7 Max in Single Turn 2 | . . 1 . . . 1 . . 2 Garrison Access 1 | . . . . . . . . . 1 Machines Repaired . | . . . . . . . . . . Machines Dismantled . | . . . . . . . . . . Machines Sabotaged . | . . . . . . . . . . Overloaded Fab Kills . | . . . . . . . . . . Hacking | -11 -10 -9 -9 -9 -8 -8 -7 -7 -7 --------- Run | Yrd Mat Mat Min Exi Min Mat Fac Was Fac Machines Accessed 7 | . . 1 1 3 . 1 . . 1 Terminals . | . . . . . . . . . . Fabricators 1 | . . . . . . . . . 1 Repair Stations . | . . . . . . . . . . Recycling Units . | . . . . . . . . . . Scanalyzers 2 | . . 1 . . . 1 . . . Garrison Access . | . . . . . . . . . . Total Hacks 36 | . . 2 1 27 . 3 . . 3 Successful 35 | . . 2 1 27 . 3 . . 2 Failed 1 | . . . . . . . . . 1 Catastrophic . | . . . . . . . . . . Database Lockouts . | . . . . . . . . . . Manual 1 | . . . . 1 . . . . . Terminals . | . . . . . . . . . . Fabricators 3 | . . . . . . . . . 3 Repair Stations . | . . . . . . . . . . Recycling Units . | . . . . . . . . . . Scanalyzers 5 | . . 2 . . . 3 . . . Garrison Access . | . . . . . . . . . . Terminal Hacks 28 | . . . 1 27 . . . . . Record 26 | . . . . 26 . . . . . Open Door 1 | . . . 1 . . . . . . Proto ID Catalog 1 | . . . . 1 . . . . . Fabricator Hacks 2 | . . . . . . . . . 2 Load Schematic 1 | . . . . . . . . . 1 Build 1 | . . . . . . . . . 1 Repair Station Hacks . | . . . . . . . . . . Recycling Unit Hacks . | . . . . . . . . . . Scanalyzer 5 | . . 2 . . . 3 . . . Insert Component 4 | . . 1 . . . 3 . . . Analyze 1 | . . 1 . . . . . . . Garrison Access Hacks . | . . . . . . . . . . Unauthorized Hacks . | . . . . . . . . . . Terminals . | . . . . . . . . . . Fabricators . | . . . . . . . . . . Repair Stations . | . . . . . . . . . . Recycling Units . | . . . . . . . . . . Scanalyzers . | . . . . . . . . . . Garrison Access . | . . . . . . . . . . Data Cores Recovered . | . . . . . . . . . . Used . | . . . . . . . . . . Hacking Detections 3 | . . 1 . . . 1 . . 1 Full Trace Events 2 | . . . . . . 1 . . 1 Feedback Events . | . . . . . . . . . . Feedback Blocked . | . . . . . . . . . . Robot Schematics Acquired . | . . . . . . . . . . Robots Built . | . . . . . . . . . . Authchips . | . . . . . . . . . . Time . | . . . . . . . . . . Total Robot Build Rating . | . . . . . . . . . . Part Schematics Acquired 1 | . . 1 . . . . . . . Parts Built 2 | . . . . . . . . . 2 Authchips . | . . . . . . . . . . Time 31 | . . . . . . . . . 31 Total Part Build Rating 4 | . . . . . . . . . 4 Parts Repaired . | . . . . . . . . . . Time . | . . . . . . . . . . Parts Recycled . | . . . . . . . . . . Recycled Matter . | . . . . . . . . . . Retrieved Matter . | . . . . . . . . . . Retrieved Components . | . . . . . . . . . . Parts Scanalyzed 1 | . . 1 . . . . . . . Part Schematics Acquired 1 | . . 1 . . . . . . . Parts Damaged . | . . . . . . . . . . Bothacking | -11 -10 -9 -9 -9 -8 -8 -7 -7 -7 ------------ Run | Yrd Mat Mat Min Exi Min Mat Fac Was Fac Used RIF Installer . | . . . . . . . . . . Robots Hacked . | . . . . . . . . . . Non-combat . | . . . . . . . . . . Combat . | . . . . . . . . . . Robot Hacks Applied . | . . . . . . . . . . Relay Couplers Released 3 | . . . . . . . . . 3 Machine Destruction 3 | . . . . . . . . . 3 Fabnet Peak Effective % . | . . . . . . . . . . Robots Rewired . | . . . . . . . . . . Allies Hacked 1 | . . . . . . . . . 1 Hacks Repelled . | . . . . . . . . . . Allies | -11 -10 -9 -9 -9 -8 -8 -7 -7 -7 -------- Run | Yrd Mat Mat Min Exi Min Mat Fac Was Fac Total Allies 18 | . . . . . . . . 18 . Largest Group 18 | . . . . . . . . 18 6 Highest-Rated Group 434 | . . . . . . . . 434 194 Highest-Rated Ally 35 | . . . . . . . . 35 35 Total Orders . | . . . . . . . . . . Ally Attacks 186 | . . . . . . . . 104 82 Total Damage 6432 | . . . . . . . . 4753 1679 Kills 28 | . . . . . . . . 13 15 Allies Corrupted . | . . . . . . . . . . Allies Melted . | . . . . . . . . . . Intel | -11 -10 -9 -9 -9 -8 -8 -7 -7 -7 ------- Run | Yrd Mat Mat Min Exi Min Mat Fac Was Fac Active Infowar (turns) 5198 | . 118 672 136 187 68 1022 1023 1053 919 Optics 5198 | . 118 672 136 187 68 1022 1023 1053 919 Robot Analysis Total . | . . . . . . . . . . Derelict Logs Recovered . | . . . . . . . . . . Drone Launches . | . . . . . . . . . . Drone Recoveries . | . . . . . . . . . . Exploration | -11 -10 -9 -9 -9 -8 -8 -7 -7 -7 ------------- Run | Yrd Mat Mat Min Exi Min Mat Fac Was Fac Turns Passed 5720 | 47 584 672 136 187 68 1022 1023 1053 928 Spaces Moved 3572 | 33 304 372 147 392 130 539 392 753 510 Core 339 | 3 . . . 14 . 18 70 231 3 Treads . | . . . . . . . . . . Legs 1752 | 30 304 291 . . . . 98 522 507 Wheels . | . . . . . . . . . . Hover . | . . . . . . . . . . Flight 1481 | . . 81 147 378 130 521 224 . . Fastest Speed 37 | 50 120 37 37 37 37 50 40 50 50 Average Speed 111 | 113 131 110 78 41 38 54 194 131 146 Slowest Speed 450 | 120 190 190 107 150 110 250 300 450 190 Overloaded Moves . | . . . . . . . . . . Propulsion Burnouts . | . . . . . . . . . . Robots Hopped 12 | . . . . . 5 7 . . . Potential Cave-ins 2 | . . . . . . 1 . 1 . Cave-ins Triggered . | . . . . . . . . . . Exploration Rate (%) 39 | 3 64 29 39 64 35 32 13 97 14 Regions Visited 9 Branch Regions 3 Pre-discovered Areas 1 | . . . . 1 . . . . . Known Exits Taken . | . . . . . . . . . . Unknown Exits Taken 7 | 1 1 1 1 1 1 1 . . . Scrap Searched . | . . . . . . . . . . Spaces Dug 15 | . . . . . . 15 . . . Terrain Destroyed 301 | . . . 12 . 51 163 . . 75 Melee . | . . . . . . . . . . Projectile 10 | . . . . . . 4 . . 6 AOE 291 | . . . 12 . 51 159 . . 69 Terrain Rammed . | . . . . . . . . . . Walls Destroyed . | . . . . . . . . . . Machines Disabled . | . . . . . . . . . . Actions | -11 -10 -9 -9 -9 -8 -8 -7 -7 -7 --------- Run | Yrd Mat Mat Min Exi Min Mat Fac Was Fac Total 4776 | 42 397 492 162 418 135 1108 615 792 615 Wait 794 | . 32 42 9 18 3 456 176 17 41 Move 3541 | 32 303 371 146 391 120 524 392 752 510 Hop 11 | . . . . . 4 7 . . . Pick Up 54 | 5 9 5 . 1 1 14 9 4 6 Fast Attach 18 | . . 3 2 2 . . 5 2 4 Attach 49 | 5 4 5 . . 1 14 7 5 8 Detach 4 | . . 1 . . . 3 . . . Swap 11 | . 2 . 1 . . 8 . . . Drop 19 | . 1 2 2 6 1 2 1 . 4 Fire 256 | . 46 63 2 . 5 68 25 12 35 Melee 14 | . . . . . . 12 . . 2 Ram . | . . . . . . . . . . Kick . | . . . . . . . . . . Crush . | . . . . . . . . . . Escape Stasis 5 | . . . . . . . . . 5 Rewire . | . . . . . . . . . . Trap . | . . . . . . . . . . Miscellaneous . | . . . . . . . . . . Route ------- -11/Scrapyard -10/Materials (discovered 2 exits: *Mat / [*Min]) -9/Materials -9/Mines (discovered 2 exits: *Mat / *Exi) -9/Exiles (discovered 2 exits: [*Min x2]) -8/Mines -8/Materials -7/Factory -7/Waste -7/Factory History --------- Turn | Location | Event 4 | -11/Scrapyard | Discovered new exit (range 16) 48 | -11/Scrapyard | Entered Materials 222 | -10/Materials | Discovered new exit (range 13) 316 | -10/Materials | Build established: Mutant 521 | -10/Materials | Lost 3 parts (1p1n1w) 621 | -10/Materials | Discovered new exit (range 9) 632 | -10/Materials | Entered another Materials area 632 | -9/Materials | Evolved 2 slots: Weapon x2 1031 | -9/Materials | Build established: Gunner 1135 | -9/Materials | Discovered new exit (range 17) 1304 | -9/Materials | Entered Mines 1304 | -9/Mines | Discovered new exit (range 7) 1316 | -9/Mines | Received a Rocket Launcher from a helpful Derelict 1421 | -9/Mines | Met a Derelict who couldn't figure out how to use a Trap Extractor 1438 | -9/Mines | Deemed a non-threat by the Exiles lab entrance 1438 | -9/Mines | Discovered new exit (range 5) 1440 | -9/Mines | Entered Exiles 1445 | -9/Exiles | Discovered new exit (range 17) 1450 | -9/Exiles | Met 8R-AWN 1455 | -9/Exiles | Met EX-HEX 1481 | -9/Exiles | Met EX-BIN 1487 | -9/Exiles | Aligned with FarCom system 1487 | -9/Exiles | Given EX-Vault access code 1500 | -9/Exiles | Opened EX-Vault 1509 | -9/Exiles | Found Flying Fortress v7 1540 | -9/Exiles | Exiles lab attacked by MAIN.C 1612 | -9/Exiles | Learned location of Zion (-6) 1623 | -9/Exiles | Discovered new exit (range 11) 1627 | -9/Exiles | Left Exiles lab with Flying Fortress v7 1627 | -9/Exiles | Entered Mines 1647 | -8/Mines | Core integrity fell below 50% 1685 | -8/Mines | Discovered new exit (range 6) 1695 | -8/Mines | Entered Materials 1695 | -8/Materials | Evolved 2 slots: Propulsion x2 1723 | -8/Materials | Lost 4 parts (1n3w) 1981 | -8/Materials | Build established: Skirmisher 2503 | -8/Materials | Destroyed 7 combat bots 2508 | -8/Materials | Garrison activated, responded to threat 2679 | -8/Materials | Lost 4 parts (1p1n2w) 2680 | -8/Materials | Garrison activated, responded to threat 2703 | -8/Materials | Discovered new exit (range 6) 2717 | -8/Materials | Entered Factory 2717 | -7/Factory | Evolved 2 slots: Propulsion x2 2740 | -7/Factory | Lost 3 parts (3w) 2997 | -7/Factory | Lost 3 parts (1n2w) 3740 | -7/Factory | Sucked down chute 3740 | -7/Factory | Entered Waste 3767 | -7/Waste | Spotted C-40 Crusher 3774 | -7/Waste | Spotted C-40 Crusher 3798 | -7/Waste | Crushed by Compactor (1 part destroyed, 1 dropped) 3809 | -7/Waste | Crushed by Compactor (1 part destroyed, 1 dropped) 3814 | -7/Waste | Destroyed C-40 Crusher 3831 | -7/Waste | Spotted C-40 Crusher 3859 | -7/Waste | Spotted C-40 Crusher 3885 | -7/Waste | Spotted C-40 Crusher 3925 | -7/Waste | Spotted C-40 Crusher 4019 | -7/Waste | Discovered new exit (range 11) 4096 | -7/Waste | Build established: Scavenger-Mutant 4120 | -7/Waste | Crushed by Compactor (1 part destroyed, 1 dropped) 4290 | -7/Waste | Crushed by Compactor (1 part destroyed, 2 dropped) 4323 | -7/Waste | Warlord forces began an assault 4370 | -7/Waste | Allies destroyed C-40 Crusher 4371 | -7/Waste | Allies destroyed C-40 Crusher 4380 | -7/Waste | Destroyed C-40 Crusher 4382 | -7/Waste | Allies destroyed C-40 Crusher 4388 | -7/Waste | Allies destroyed C-40 Crusher 4410 | -7/Waste | Lost 11 allies 4697 | -7/Waste | Build established: Skirmisher 4793 | -7/Waste | Entered Factory 4793 | -7/Factory | Accompanied by 6 allies 5574 | -7/Factory | Lost 3 allies 5648 | -7/Factory | Core integrity fell below 50% 5653 | -7/Factory | Fabricated Shotgun (x2) 5681 | -7/Factory | System corruption reached 10% 5710 | -7/Factory | Core integrity fell below 20% 5721 | -7/Factory | Destroyed by G-50 Soldier with Heavy Laser Last Messages --------------- G-47 Trooper knocked back. Slug Cannon destroyed. K-01 Serf collects debris. Knocked back. K-01 Serf collects debris. Gauss Cannon destroyed. System corrupted: Heat flow error (+184). Visual Processing Unit destroyed. Hvy. Ion Cannon destroyed. System corrupted by crushing effect (+1). System corrupted by crushing effect (+2). K-01 Serf collects debris. Critical hit (Burn: +37). Overheating: Energy bleed (-5). B-48 Gladiator Mace severed. Overheating: Blade Saw damaged (-4). K-01 Serf collects debris. K-01 Serf destroyed. Acquired Mace. Critical hit (Burn: +37). Map ----- +----------------------------------------------------+ | ??????????????????????????????????????"#####?????? | | ??????????????????????????????? ????%" ?????? | | ??????????????????????????????? ??#" ???? ? | | ???????????????????????????????? ??+ ???? | | ???????????????????????????????? # ??]] | | ?????????????????????????" ????!!! # ?]]] | | ?????????????????????????" ??? !! # | | ????????????????????????? ??? !! # """% | | ?????????????????????????" ???? # """""= | | ????????????????????????"" #???? # """"" ! | | ????????????????????????"" #???? # =%! | | ???????????????????????? #????? # ! | | ???????????????????? """ #????##g# = | | ????????????????????# """ #???##""[ % | | ????????????????????# """ #???# "F[ % | | ????????????????????# #????#""" ! "* | | ????????????????????# """ #?####""" " " | | ????????????????????# """ # # " " | | ????????????????????# """ ###### *%! | | ????????????????????# % [ | | ???????????#????????# "" % "" | | ?????????###T ####### ""%=% % % | | ?????????# "Tb % g % | | ?????????# "" %g% % | | ?????????# "" g %* | | ?????????# @ != | | ?????????# *% """ | | ?????????# #+############;########### | | ?????????# ??????????# ?????# | | ?????????# ????????????# ????# | | ??????????????????????????? * #???# | | ??????????????????????????# #???# | | ??????????????????????????# #???# | | ??????????????????????????## #???# | | ???????????????????????????# #???###### | | ??????????????????????????## #????????? | | ??????????????????????????## #????????? | | ???????????????????????????# #????????? | | ???????????????????????????# #????????? | | ???????????????????????????# #????????? | | ???????????????????????????##############????????? | | ?????????????????????????????????????????????????? | | ?????????????????????????????????????????????????? | | ?????????????????????????????????????????????????? | | ?????????????????????????????????????????????????? | | ?????????????????????????????????????????????????? | | ?????????????????????????????????????????????##### | | ?????????????????????????????????????????????# | | ?????????????????????????????????????????????# | | ?????????????????????????????????????????????# | +----------------------------------------------------+ Best States ------------- Heat Dissipation 34 Energy Generation 18 Energy Capacity 275 Matter Stores 300 Matter Capacity 300 Sight Range 18 Terrain Scan Density 10 Evasion (%) 62 Targeting Accuracy 6 Core Analysis 6 Offensive Hacking 10 Item Schematics ----------------- Shotgun | -9/Materials | Scanalyzed Robot Schematics ------------------ None Fabricated ------------ Shotgun | x2 | -7/Factory Repaired ---------- Nothing Alien Tech Used ----------------- None Achievements -------------- Overkill Challenges ------------ None Game ------ Seed ShockLauncherReplica Manual? 0 Play Time 00:51:50 Cumulative 45.4 hours Start 2025.07.10 @ 12:37:43 End 2025.07.10 @ 13:29:06 Sessions 1 Manual Loads 0 Difficulty Rogue Special Mode None Game No. 211 Rogue 211 Adventurer 0 Explorer 0 Win Type - Total 0 Types 0/0/0/0/0/0/0/0/0/0 Lore% 32 Gallery% 26 Achievement% 23 Wizard Run 0 Options --------- Layout 2 ASCII 0 Keyboard 0 Movement Mouse Keybinds 0 Fullscreen 1 Font 24/Smallcaps Map View 50x44 Zoom Use 0% Tactical HUD 0 Map Filters NONE Filters NONE Steam 1 RUN: c6a1063b-17b9-41f7-80e1-194dbd0d03c4